fUSD/lending_fUSD_20260407
["ID","MTS","AMOUNT","RATE_DAILY","PERIOD"]
[419977428,1775580645223,-506.3,0.00013699,2]
[419977429,1775580645234,-893.87,0.00013699,2]
[419977430,1775580645245,-500.0,0.00013699,2]
[419977431,1775580645255,-500.0,0.00013699,2]
[419977432,1775580645265,-500.0,0.00013699,2]
[419977433,1775580645275,-500.0,0.00013699,2]
[419977434,1775580645286,-500.0,0.00013699,2]
[419977435,1775580645296,-500.0,0.00013699,2]
[419977436,1775580645308,-305.85122809,0.00013699,2]
[419977437,1775580645318,-342956.12,0.000137,2]
[419977438,1775580645329,-430.56450017,0.00013701,2]
[419977439,1775580645339,-5246.47772752,0.00013701,2]
[419977440,1775580645350,-150.0,0.00013706,2]
[419977441,1775580645361,-155.26329613,0.00013763,2]
[419977442,1775580645372,-351.0,0.0001379,2]
[419977443,1775580645382,-249.66,0.00013795,2]
[419977444,1775580645392,-255.0,0.00013803,2]
[419977445,1775580645404,-420.0,0.00013814,2]
[419977446,1775580645415,-420.0,0.00013824,2]
[419977447,1775580645425,-420.0,0.00013824,2]
[419977448,1775580645437,-1680.0,0.0001385,2]
[419977449,1775580645448,-500.0,0.00013851,2]
[419977450,1775580645458,-500.0,0.00013851,2]
[419977451,1775580645468,-500.0,0.00013851,2]
[419977452,1775580645478,-500.0,0.00013851,2]
[419977453,1775580645489,-227.17019422,0.00013851,2]
[419977455,1775580645500,-300.0,0.0001386,2]
[419977456,1775580645511,-356.43990232,0.0001386,2]
[419977457,1775580645522,-250.0,0.0001386,2]
[419977458,1775580645533,-2500.0,0.0001386,2]
[419977459,1775580645544,-2500.0,0.0001386,2]
[419977460,1775580645555,-2500.0,0.0001386,2]
[419977461,1775580645566,-2500.0,0.0001386,2]
[419977462,1775580645577,-2500.0,0.0001386,2]
[419977463,1775580645588,-5000.0,0.0001386,2]
[419977464,1775580645605,-300.0,0.0001386,2]
[419977465,1775580645620,-300.0,0.0001386,2]
[419977466,1775580645631,-300.0,0.0001386,2]
[419977467,1775580645642,-250.0,0.00013861,2]
[419977468,1775580645653,-5000.0,0.00013861,2]
[419977469,1775580645664,-200.0,0.00013861,2]
[419977471,1775580645674,-250.0,0.00013861,2]
[419977473,1775580645685,-391.29868191,0.00013868,2]
[419977474,1775580645695,-500.0,0.00013868,2]
[419977475,1775580645706,-985.75,0.00013911,2]
[419977476,1775580645718,-160.0,0.00013936,7]
[419977477,1775580645729,-1691.9952,0.00013936,7]
[419977478,1775580645740,-3223.990401,0.00013936,7]
[419977479,1775580645751,-160.0,0.00013936,7]
[419977480,1775580645763,-987.100486,0.00013936,7]
[419977481,1775580645774,-1814.200973,0.00013936,7]
[419977482,1775580645785,-160.0,0.00013937,2]
[419977483,1775580645795,-1644.220063,0.00013937,2]
[419977484,1775580645806,-3128.440126,0.00013937,2]
[419977485,1775580645817,-193.0,0.0001396,2]
[419977486,1775580645827,-160.0,0.00013962,7]
[419977487,1775580645837,-247.771417,0.00013962,7]
[419977488,1775580645847,-335.542834,0.00013962,7]
[419977489,1775580645858,-150.0,0.00013973,2]
[419977490,1775580645869,-150.0,0.00013973,2]
[419977491,1775580645880,-150.0,0.00013973,2]
[419977492,1775580645890,-167.5882,0.00014,2]
[419977493,1775580645900,-9480.69468823,0.00014067,2]
[419977494,1775580645911,-5246.47772752,0.00014067,2]
[419977495,1775580645923,-922.22,0.00014079,2]
[419977496,1775580645935,-500.0,0.00014079,2]
[419977497,1775580645946,-506.3,0.00014079,2]
[419977498,1775580645957,-893.87,0.00014079,2]
[419977499,1775580645968,-700.0,0.00014082,2]
[419977500,1775580645979,-1600.0,0.00014082,2]
[419977501,1775580645990,-500.0,0.00014096,2]
[419977502,1775580646000,-787.31,0.00014096,2]
[419977503,1775580646011,-500.0,0.00014142,2]
[419977504,1775580646022,-501.0,0.00014162,2]
[419977505,1775580646033,-985.75,0.00014185,2]
[419977506,1775580646044,-160.0,0.00014211,2]
[419977507,1775580646056,-1000.0,0.00014221,2]
[419977508,1775580646067,-1000.0,0.00014221,2]
[419977509,1775580646078,-503.19697935,0.00014221,2]
[419977510,1775580646089,-659.88642084,0.00014221,2]
[419977511,1775580646099,-1000.0,0.00014221,2]
[419977512,1775580646110,-500.0,0.00014221,2]
[419977513,1775580646122,-1000.0,0.00014221,2]
[419977526,1775580646393,-1000.0,0.00014221,2]
[419977528,1775580646402,-1000.0,0.00014221,2]
[419977530,1775580646412,-150.0,0.00014247,2]
[419977532,1775580646423,-150.0,0.00014247,2]
[419977534,1775580646433,-1000.0,0.00014247,2]
[419977536,1775580646443,-1000.88623589,0.00014247,2]
[419977538,1775580646454,-1000.0,0.00014247,2]
[419977540,1775580646464,-1000.0,0.00014247,2]
[419977542,1775580646474,-500.55949721,0.00014247,2]
[419977544,1775580646484,-500.0,0.00014247,2]
[419977546,1775580646494,-430.56450017,0.00014251,2]
[419977548,1775580646504,-1000.0,0.00014349,2]
[419977550,1775580646514,-500.0,0.00014356,2]
[419977552,1775580646525,-1263.209566,0.00014378,7]
[419977553,1775580646535,-1190.400504,0.00014378,2]
[419977554,1775580646546,-396.02,0.00014384,2]
[419977555,1775580646557,-2812.0,0.000144,2]
[419977556,1775580646567,-351.0,0.000144,2]
[419977557,1775580646577,-351.0,0.000144,2]
[419977558,1775580646586,-500.0,0.00014416,2]
[419977559,1775580646596,-9480.69468823,0.00014434,2]
[419977560,1775580646606,-5246.47772752,0.00014434,2]
[419977561,1775580646615,-985.75,0.00014459,2]
[419977562,1775580646626,-556.66,0.00014482,2]
[419977563,1775580646636,-23010.3303587,0.00014537,2]
[419977564,1775580646646,-200.0,0.00014588,2]
[419977565,1775580646656,-1235.18214925,0.00014588,2]
[419977566,1775580646666,-623.58710448,0.00014588,2]
[419977567,1775580646675,-500.0,0.00014588,2]
[419977568,1775580646685,-8260.13072239,0.00014588,2]
[419977569,1775580646694,-174.61919141,0.00014588,2]
[419977570,1775580646704,-743.50770149,0.00014588,2]
[419977571,1775580646715,-599.60298507,0.00014588,2]
[419977572,1775580646725,-411.57624402,0.00014588,2]
[419977573,1775580646735,-785.92,0.00014617,2]
[419977574,1775580646745,-2307.266182,0.00014633,7]
[419977575,1775580646755,-1346.046118,0.00014633,7]
[419977576,1775580646764,-325.07,0.00014633,2]
[419977577,1775580646773,-2242.118267,0.00014633,2]
[419977578,1775580646783,-500.0,0.00014643,2]
[419977579,1775580646793,-4638.35391231,0.00014643,2]
[419977580,1775580646803,-506.805171,0.0001466,7]
[419977581,1775580646813,-500.0,0.0001469,2]
[419977582,1775580646824,-500.0,0.00014698,2]
[419977583,1775580646834,-150.0,0.000147,2]
[419977584,1775580646845,-232.00571695,0.000147,2]
[419977585,1775580646855,-2812.0,0.0001472,2]
[419977586,1775580646865,-1573.0,0.0001472,2]
[419977587,1775580646875,-455.86,0.00014733,2]
[419977588,1775580646886,-743.02612429,0.0001475,2]
[419977589,1775580646895,-9327.13254092,0.00014751,2]
[419977590,1775580646907,-958.49764653,0.00014751,2]
[419977591,1775580646916,-500.0,0.00014753,2]
[419977592,1775580646926,-1500.0,0.00014768,2]
[419977593,1775580646936,-1500.0,0.00014768,2]
[419977594,1775580646946,-1500.0,0.00014768,2]
[419977595,1775580646956,-1500.0,0.00014768,2]
[419977596,1775580646966,-1500.0,0.00014768,2]
[419977597,1775580646976,-1500.0,0.00014768,2]
[419977598,1775580646986,-2000.0,0.00014769,2]
[419977599,1775580646995,-152.09808365,0.00014781,2]
[419977600,1775580647005,-1002.54510633,0.00014795,2]
[419977601,1775580647015,-1500.0,0.00014795,2]
[419977602,1775580647024,-500.70648413,0.00014795,2]
[419977603,1775580647034,-250.0,0.00014795,2]
[419977604,1775580647044,-193.96292451,0.00014795,2]
[419977605,1775580647055,-430.56450017,0.000148,2]
[419977606,1775580647065,-9480.69468823,0.000148,2]
[419977607,1775580647074,-5246.47772752,0.000148,2]
[419977608,1775580647084,-500.0,0.00014808,2]
[419977609,1775580647094,-208.0,0.00014852,5]
[419977610,1775580647103,-937.35,0.00014853,2]
[419977611,1775580647113,-3284.3,0.00014853,2]
[419977612,1775580647123,-1129.7,0.00014853,2]
[419977613,1775580647133,-8203.84,0.00014853,2]
[419977614,1775580647143,-1563.0514107,0.00014885,2]
[419977615,1775580647152,-785.92,0.00014891,2]
[419977616,1775580647162,-500.0,0.00014964,2]
[419977617,1775580647171,-922.22,0.00014999,2]
[419977618,1775580647181,-500.0,0.00014999,2]
[419977619,1775580647191,-506.3,0.00014999,2]
[419977620,1775580647201,-893.87,0.00014999,2]
[419977621,1775580647211,-860.0,0.00015,2]
[419977622,1775580647220,-300.0,0.00015,2]
[419977623,1775580647230,-433.0,0.00015009,2]
[419977624,1775580647240,-163.4,0.00015023,2]
[419977625,1775580647250,-1573.0,0.0001504,2]
[419977626,1775580647259,-494.00745143,0.00015041,2]
[419977627,1775580647268,-155.0,0.00015067,2]
[419977628,1775580647277,-210.28,0.00015068,2]
[419977629,1775580647286,-396.02,0.00015068,2]
[419977630,1775580647297,-493.54914906,0.00015068,2]
[419977631,1775580647307,-1082.82131095,0.00015074,2]
[419977632,1775580647318,-3314.0,0.00015087,2]
[419977633,1775580647327,-725.41426255,0.0001509,2]
[419977634,1775580647338,-342956.12,0.000151,2]
[419977635,1775580647349,-3314.0,0.00015133,2]
[419977636,1775580647358,-1280.88388878,0.00015136,2]
[419977637,1775580647367,-181.08010149,0.00015136,2]
[419977638,1775580647377,-854.56470337,0.00015136,2]
[419977639,1775580647387,-194.83183622,0.00015136,2]
[419977640,1775580647397,-296.64322681,0.00015139,2]
[419977641,1775580647407,-2683.33576369,0.00015142,2]
[419977642,1775580647417,-587.0,0.00015155,2]
[419977643,1775580647425,-209.92,0.00015165,2]
[419977644,1775580647434,-394.0,0.00015166,2]
[419977645,1775580647444,-9480.69468823,0.00015167,2]
[419977646,1775580647454,-5246.47772752,0.00015167,2]
[419977647,1775580647463,-500.0,0.00015199,2]
[419977648,1775580647472,-500.0,0.00015199,2]
[419977649,1775580647482,-922.22,0.00015199,2]
[419977650,1775580647491,-787.31,0.00015199,2]
[419977651,1775580647500,-787.31,0.00015199,2]
[419977652,1775580647509,-274.44397972,0.00015199,2]
[419977653,1775580647518,-506.3,0.00015199,2]
[419977654,1775580647527,-893.87,0.00015199,2]
[419977655,1775580647539,-3314.0,0.00015212,2]
[419977656,1775580647549,-501.0,0.00015224,3]
[419977657,1775580647558,-350.0,0.0001523,2]
[419977658,1775580647569,-2351.0,0.00015235,2]
[419977659,1775580647579,-500.0,0.00015238,2]
[419977660,1775580647589,-325.07,0.00015267,2]
[419977661,1775580647600,-447.22262728,0.00015278,2]
[419977662,1775580647610,-187.2388,0.000153,2]
[419977663,1775580647619,-1347.0,0.00015316,2]
[419977664,1775580647630,-3524.0,0.00015316,2]
[419977665,1775580647640,-622.0,0.00015316,2]
[419977666,1775580647650,-276.717,0.00015316,2]
[419977667,1775580647659,-1217.0,0.00015316,2]
[419977668,1775580647669,-948.445,0.00015316,2]
[419977669,1775580647679,-415.0,0.00015316,2]
[419977670,1775580647689,-6022.0,0.00015316,2]
[419977671,1775580647699,-2000.0,0.00015316,2]
[419977672,1775580647709,-2000.0,0.00015316,2]
[419977673,1775580647719,-2000.0,0.00015316,2]
[419977674,1775580647729,-2000.0,0.00015316,2]
[419977675,1775580647739,-2000.0,0.00015316,2]
[419977676,1775580647749,-1008.06532933,0.00015316,2]
[419977677,1775580647759,-283.10092568,0.00015342,2]
[419977678,1775580647769,-430.56450017,0.0001535,2]
[419977679,1775580647779,-162.0,0.0001536,2]
[419977680,1775580647789,-1573.0,0.0001536,2]
[419977681,1775580647799,-1570.0,0.0001536,2]
[419977682,1775580647809,-1509.68129686,0.000154,2]
[419977683,1775580647819,-871.95012592,0.00015409,2]
[419977684,1775580647828,-447.22262728,0.00015429,2]
[419977685,1775580647838,-700.0,0.00015452,2]
[419977686,1775580647848,-1600.0,0.00015452,2]
[419977687,1775580647857,-10389.17,0.00015471,2]
[419977688,1775580647867,-155.26329613,0.00015483,2]
[419977689,1775580647876,-2000.0,0.000155,2]
[419977690,1775580647886,-3314.0,0.00015502,2]
[419977691,1775580647895,-4000.0,0.00015507,2]
[419977692,1775580647905,-1961.0,0.00015508,2]
[419977693,1775580647915,-1961.0,0.00015529,2]
[419977694,1775580647925,-9480.69468823,0.00015533,2]
[419977695,1775580647935,-5246.47772752,0.00015533,2]
[419977696,1775580647945,-163.4,0.00015551,2]
[419977697,1775580647954,-922.22,0.0001556,2]
[419977698,1775580647963,-922.22,0.0001556,2]
[419977699,1775580647973,-922.22,0.0001556,2]
[419977700,1775580647983,-922.22,0.0001556,2]
[419977701,1775580647992,-922.30053324,0.0001556,2]
[419977702,1775580648002,-506.3,0.0001556,2]
[419977703,1775580648011,-506.3,0.0001556,2]
[419977704,1775580648020,-506.3,0.0001556,2]
[419977705,1775580648031,-506.3,0.0001556,2]
[419977706,1775580648040,-506.4298975,0.0001556,2]
[419977707,1775580648049,-893.87,0.0001556,2]
[419977708,1775580648059,-893.87,0.0001556,2]
[419977709,1775580648067,-893.87,0.0001556,2]
[419977710,1775580648077,-893.87,0.0001556,2]
[419977711,1775580648086,-893.90214758,0.0001556,2]
[419977712,1775580648096,-447.22262728,0.00015581,2]
[419977713,1775580648106,-2000.0,0.000156,2]
[419977714,1775580648115,-150.0,0.00015634,2]
[419977715,1775580648125,-1000.0,0.00015634,2]
[419977716,1775580648135,-1000.0,0.00015634,2]
[419977717,1775580648144,-1000.0,0.00015634,2]
[419977718,1775580648152,-1000.0,0.00015634,2]
[419977719,1775580648162,-1000.0,0.00015634,2]
[419977720,1775580648172,-350.0,0.00015643,3]
[419977721,1775580648181,-350.0,0.00015669,4]
[419977722,1775580648191,-563.8666286,0.0001568,2]
[419977723,1775580648201,-1573.0,0.0001568,2]
[419977724,1775580648209,-2079.0,0.0001568,2]
[419977725,1775580648218,-1328.27659266,0.00015684,2]
[419977726,1775580648229,-187.78006525,0.00015684,2]
[419977727,1775580648239,-2010.0,0.000157,2]
[419977728,1775580648249,-2000.0,0.000157,2]
[419977729,1775580648259,-250.0,0.00015703,2]
[419977730,1775580648268,-1000.0,0.00015733,2]
[419977731,1775580648278,-1000.0,0.00015746,2]
[419977732,1775580648288,-656.868974,0.00015747,7]
[419977733,1775580648298,-619.008262,0.00015747,2]
[419977734,1775580648308,-396.02,0.00015753,2]
[419977735,1775580648318,-1078.35161779,0.00015756,2]
[419977736,1775580648328,-306.99202132,0.00015762,2]
[419977737,1775580648337,-377.0,0.00015777,2]
[419977738,1775580648347,-157.4186019,0.00015778,2]
[419977739,1775580648357,-151.49,0.00015778,2]
[419977740,1775580648366,-151.49,0.00015778,2]
[419977741,1775580648376,-151.49,0.00015778,2]
[419977742,1775580648386,-151.48,0.00015778,2]
[419977743,1775580648396,-1588.240216,0.00015778,2]
[419977744,1775580648405,-1500.0,0.00015778,2]
[419977745,1775580648415,-1500.0,0.00015778,2]
[419977746,1775580648425,-1500.0,0.00015778,2]
[419977747,1775580648435,-1500.0,0.00015778,2]
[419977748,1775580648446,-1500.0,0.00015778,2]
[419977749,1775580648455,-1500.0,0.00015778,2]
[419977750,1775580648465,-1500.0,0.00015778,2]
[419977751,1775580648475,-1500.0,0.00015778,2]
[419977752,1775580648484,-1500.0,0.00015778,2]
[419977753,1775580648494,-1500.0,0.00015778,2]
[419977754,1775580648504,-377.0,0.00015784,2]
[419977755,1775580648513,-1000.0,0.00015797,2]
[419977756,1775580648523,-3205.0,0.000158,2]
[419977757,1775580648532,-2000.0,0.000158,2]
[419977758,1775580648542,-1000.0,0.00015803,2]
[419977759,1775580648551,-377.0,0.00015808,2]
[419977760,1775580648561,-254.76977342,0.0001581,2]
[419977761,1775580648571,-706.51612043,0.0001581,2]
[419977762,1775580648580,-150.0,0.0001582,2]
[419977763,1775580648589,-4608.0,0.00015827,2]
[419977764,1775580648598,-150.0,0.00015827,2]
[419977765,1775580648608,-500.0,0.00015839,2]
[419977766,1775580648618,-517.21055633,0.00015839,2]
[419977767,1775580648627,-787.31,0.00015839,2]
[419977768,1775580648636,-787.31,0.00015839,2]
[419977769,1775580648646,-787.31,0.00015839,2]
[419977770,1775580648655,-787.31,0.00015839,2]
[419977771,1775580648665,-787.34692703,0.00015839,2]
[419977772,1775580648675,-10000.0,0.0001584,2]
[419977773,1775580648685,-42892.25216829,0.0001584,2]
[419977774,1775580648694,-2018.48554,0.0001584,2]
[419977775,1775580648704,-2018.48554,0.0001584,2]
[419977776,1775580648713,-171.745,0.0001585,2]
[419977777,1775580648722,-2018.48554,0.0001585,2]
[419977778,1775580648732,-377.0,0.00015854,2]
[419977779,1775580648742,-150.0,0.00015854,2]
[419977780,1775580648752,-1000.0,0.00015855,2]
[419977781,1775580648762,-171.745,0.0001586,2]
[419977782,1775580648772,-513.22099072,0.00015864,2]
[419977783,1775580648782,-500.0,0.00015864,2]
[419977784,1775580648792,-2500.0,0.00015864,2]
[419977785,1775580648802,-2500.0,0.00015864,2]
[419977786,1775580648812,-500.0,0.00015864,2]
[419977787,1775580648822,-171.745,0.0001587,2]
[419977788,1775580648833,-500.0,0.00015872,2]
[419977789,1775580648843,-171.745,0.0001588,2]
[419977790,1775580648853,-171.3229734,0.00015884,2]
[419977791,1775580648863,-150.0,0.00015887,2]
[419977792,1775580648874,-377.0,0.00015889,2]
[419977793,1775580648884,-167.9673,0.0001589,2]
[419977794,1775580648893,-1000.0,0.0001589,2]
[419977795,1775580648905,-25000.0,0.00015891,3]
[419977796,1775580648914,-4000.0,0.00015895,2]
[419977797,1775580648924,-430.56450017,0.000159,2]
[419977798,1775580648934,-25000.0,0.000159,3]
[419977799,1775580648944,-5800.0,0.000159,2]
[419977800,1775580648953,-3378.4097849,0.000159,3]
[419977801,1775580648963,-9480.69468823,0.000159,2]
[419977802,1775580648972,-5246.47772752,0.000159,2]
[419977803,1775580648981,-233.57251441,0.000159,2]
[419977804,1775580648991,-9327.13254092,0.000159,2]
[419977805,1775580648999,-958.49764653,0.000159,2]
[419977806,1775580649008,-743.02612429,0.000159,2]
[419977807,1775580649018,-3068.0,0.000159,5]
[419977808,1775580649027,-2459.0,0.000159,5]
[419977809,1775580649036,-2000.0,0.000159,2]
[419977810,1775580649046,-243.30922088,0.00015913,2]
[419977811,1775580649056,-1003.50003004,0.00015913,2]
[419977812,1775580649065,-150.0,0.00015914,2]
[419977813,1775580649075,-1000.0,0.00015922,2]
[419977814,1775580649085,-216.71,0.00015925,2]
[419977815,1775580649094,-150.0,0.00015928,2]
[419977816,1775580649103,-178.0,0.00015928,2]
[419977817,1775580649113,-1000.0,0.00015928,2]
[419977818,1775580649123,-152.0,0.0001595,4]
[419977819,1775580649133,-184.14375198,0.0001595,5]
[419977820,1775580649142,-216.71,0.0001595,2]
[419977821,1775580649152,-377.0,0.00015951,2]
[419977822,1775580649161,-1077.2032952,0.00015951,2]
[419977823,1775580649171,-377.0,0.00015956,2]
[419977824,1775580649180,-377.0,0.00015958,2]
[419977825,1775580649190,-5000.0,0.0001596,2]
[419977826,1775580649199,-500.0,0.00015973,2]
[419977827,1775580649208,-500.0,0.00015973,2]
[419977828,1775580649217,-628.06797502,0.00015973,2]
[419977829,1775580649226,-286.56433231,0.00015973,2]
[419977830,1775580649235,-501.19620744,0.00015973,2]
[419977831,1775580649244,-500.0,0.00015973,2]
[419977832,1775580649254,-501.02973938,0.00015973,2]
[419977833,1775580649265,-500.0,0.00015973,2]
[419977834,1775580649275,-500.0,0.00015973,2]
[419977835,1775580649285,-500.0,0.00015973,2]
[419977836,1775580649294,-500.0,0.00015973,2]
[419977837,1775580649304,-500.0,0.00015973,2]
[419977838,1775580649314,-500.0,0.00015973,2]
[419977839,1775580649323,-500.0,0.00015973,2]
[419977840,1775580649332,-500.0,0.00015973,2]
[419977841,1775580649342,-500.0,0.00015973,2]
[419977842,1775580649351,-500.0,0.00015973,2]
[419977843,1775580649361,-500.27198937,0.00015973,2]
[419977844,1775580649371,-500.0,0.00015973,2]
[419977845,1775580649380,-500.0,0.00015973,2]
[419977846,1775580649389,-500.0,0.00015973,2]
[419977847,1775580649399,-500.0,0.00015973,2]
[419977848,1775580649408,-500.0,0.00015973,2]
[419977849,1775580649418,-500.0,0.00015973,2]
[419977850,1775580649427,-500.0,0.00015973,2]
[419977851,1775580649437,-500.0,0.00015973,2]
[419977852,1775580649446,-500.0,0.00015973,2]
[419977853,1775580649456,-500.0,0.00015973,2]
[419977854,1775580649467,-500.0,0.00015973,2]
[419977855,1775580649477,-500.0,0.00015973,2]
[419977856,1775580649487,-288.2071777,0.00015973,2]
[419977857,1775580649497,-474.57359568,0.00015973,2]
[419977858,1775580649507,-500.0,0.00015973,2]
[419977859,1775580649517,-500.0,0.00015973,2]
[419977860,1775580649526,-500.0,0.00015973,2]
[419977861,1775580649535,-500.0,0.00015973,2]
[419977862,1775580649545,-500.0,0.00015973,2]
[419977863,1775580649555,-500.0,0.00015973,2]
[419977864,1775580649566,-500.0,0.00015973,2]
[419977865,1775580649576,-244.01107124,0.00015973,2]
[419977866,1775580649586,-500.0,0.00015973,2]
[419977867,1775580649595,-164.39680661,0.00015973,2]
[419977868,1775580649605,-561.33456625,0.00015973,2]
[419977869,1775580649615,-500.0,0.00015973,2]
[419977870,1775580649626,-500.0,0.00015973,2]
[419977871,1775580649637,-352.48557695,0.00015973,2]
[419977872,1775580649648,-290.6020449,0.00015973,2]
[419977873,1775580649659,-503.7652055,0.00015973,2]
[419977874,1775580649668,-378.73889738,0.00015973,2]
[419977875,1775580649678,-216.71,0.00015975,2]
[419977876,1775580649687,-15744.6206446,0.00015978,2]
[419977877,1775580649699,-30038.8006117,0.00015978,2]
[419977878,1775580649710,-16126.0610117,0.00015978,2]
[419977879,1775580649720,-11786.7042207,0.00015978,2]
[419977880,1775580649731,-1000.0,0.00015988,2]
[419977881,1775580649741,-725.41426255,0.0001599,2]
[419977882,1775580649751,-377.0,0.00015993,2]
[419977883,1775580649761,-150.0,0.00015997,2]
[419977884,1775580649771,-150.0,0.00015997,2]
[419977885,1775580649780,-150.0,0.00015997,2]
[419977886,1775580649791,-150.0,0.00015997,2]
[419977887,1775580649801,-150.0,0.00015997,2]
[419977888,1775580649812,-209.0,0.00015997,2]
[419977889,1775580649822,-290.600783,0.00015997,2]
[419977890,1775580649832,-264.302055,0.00015997,2]
[419977891,1775580649842,-700.0,0.00015999,2]
[419977892,1775580649852,-700.0,0.00015999,2]
[419977893,1775580649863,-700.0,0.00015999,2]
[419977894,1775580649873,-700.0,0.00015999,2]
[419977895,1775580649884,-700.0,0.00015999,2]
[419977896,1775580649895,-700.0,0.00015999,2]
[419977897,1775580649905,-700.0,0.00015999,2]
[419977898,1775580649915,-700.0,0.00015999,2]
[419977899,1775580649925,-700.0,0.00015999,2]
[419977900,1775580649935,-307.0,0.00015999,2]
[419977901,1775580649945,-666.0,0.00015999,2]
[419977902,1775580649954,-666.0,0.00015999,2]
[419977903,1775580649964,-666.0,0.00015999,2]
[419977904,1775580649974,-556.66,0.00015999,2]
[419977905,1775580649983,-556.66,0.00015999,2]
[419977906,1775580649993,-556.66,0.00015999,2]
[419977907,1775580650003,-556.66,0.00015999,2]
[419977908,1775580650012,-556.66,0.00015999,2]
[419977909,1775580650021,-556.66,0.00015999,2]
[419977910,1775580650029,-556.84950636,0.00015999,2]
[419977911,1775580650039,-150.0,0.00015999,2]
[419977912,1775580650048,-150.0,0.00015999,2]
[419977913,1775580650058,-150.0,0.00015999,2]
[419977914,1775580650068,-150.0,0.00015999,2]
[419977915,1775580650078,-150.0,0.00015999,2]
[419977916,1775580650087,-150.0,0.00015999,2]
[419977917,1775580650097,-150.0,0.00015999,2]
[419977918,1775580650107,-150.0,0.00015999,2]
[419977919,1775580650117,-179.55299746,0.00015999,2]
[419977920,1775580650126,-346457.80730582,0.00016,2]
[419977921,1775580650135,-3308.97810776,0.00016,2]
[419977922,1775580650144,-1329034.3058685,0.00016,2]
[419977923,1775580650154,-185109.77941272,0.00016,2]
[419977924,1775580651509,-500.0,0.00013699,2]
[419977925,1775580651519,-68928.78739995,0.00016,2]
[419977926,1775580651679,-1336.0,0.00012824,2]
[419977927,1775580651689,-907.0,0.00012849,2]
[419977928,1775580651701,-613.65676714,0.00013151,2]
[419977929,1775580651710,-500.0,0.00013868,2]
[419977930,1775580651720,-500.0,0.00015099,2]
[419977931,1775580651730,-500.0,0.00015099,2]
[419977932,1775580651739,-567.73918003,0.00015849,2]
[419977933,1775580651749,-717617.57039,0.00016,2]
[419977934,1775580651758,-132123.15619987,0.00016,2]
[419977935,1775580651768,-217731.19647155,0.00016,2]
[419977936,1775580651777,-152.0,0.00016,2]
[419977937,1775580651787,-367384.01727919,0.00016,2]
[419977938,1775580651797,-435.55,0.00016,2]
[419977939,1775580651808,-1446226.6958505,0.00016,2]
[419977940,1775580651818,-500395.30249434,0.00016,2]
[419977941,1775580651828,-148563.85084095,0.00016,2]
[419977942,1775580651838,-250.0,0.00016,2]
[419977943,1775580651848,-250.0,0.00016,2]
[419977944,1775580651857,-250.0,0.00016,2]
[419977945,1775580651866,-250.0,0.00016,2]
[419977946,1775580651877,-250.0,0.00016,2]
[419977947,1775580651887,-250.0,0.00016,2]
[419977948,1775580651898,-250.0,0.00016,2]
[419977949,1775580651909,-250.0,0.00016,2]
[419977950,1775580651919,-250.0,0.00016,2]
[419977951,1775580651929,-250.0,0.00016,2]
[419977952,1775580651939,-250.0,0.00016,2]
[419977953,1775580651950,-250.0,0.00016,2]
[419977954,1775580651960,-250.0,0.00016,2]
[419977955,1775580651970,-250.0,0.00016,2]